bitfinex/quotes_BTCUSD_20251230
["timestamp","ask_amount","ask_price","bid_price","bid_amount"]
[1767087788874,0.01174733,87797.0,87794.0,0.00050747]
[1767087789254,0.0106634,87796.0,87794.0,0.00050747]
[1767087789451,0.00035742,87797.0,87794.0,0.00050747]
[1767087789632,0.01066333,87796.0,87794.0,0.00050747]
[1767087789829,0.00035742,87797.0,87794.0,0.00050747]
[1767087790031,0.01066334,87796.0,87794.0,0.00050747]
[1767087790253,0.01066334,87795.0,87794.0,0.00050747]
[1767087790443,0.01066334,87796.0,87794.0,0.00050747]
[1767087790646,0.01066334,87795.0,87794.0,0.00050747]
[1767087790852,0.01066983,87796.0,87794.0,0.00050747]
[1767087791052,0.01066983,87795.0,87794.0,0.00050747]
[1767087792723,0.00035742,87797.0,87794.0,0.00050747]
[1767087792926,0.00035742,87797.0,87795.0,0.1471]
[1767087794330,0.00035742,87797.0,87794.0,0.00050747]
[1767087796632,0.00035742,87797.0,87790.0,0.0114]
[1767087796835,0.0004,87798.0,87790.0,0.0114]
[1767087797708,4.258e-05,87798.0,87790.0,0.0114]
[1767087798557,0.0004,87801.0,87791.0,0.51480549]
[1767087799187,4.259e-05,87801.0,87791.0,0.51480549]
[1767087799541,2.59e-06,87802.0,87792.0,0.14209]
[1767087802628,2.59e-06,87802.0,87793.0,0.14209]
[1767087803034,0.01012848,87808.0,87793.0,0.14209]
[1767087803237,0.01138887,87805.0,87790.0,0.0114]
[1767087803479,0.01138887,87805.0,87798.0,0.51411716]
[1767087803655,0.01138874,87806.0,87798.0,0.51411716]
[1767087804076,0.01138874,87806.0,87805.0,0.00035739]
[1767087804294,0.0114,87813.0,87805.0,0.00035739]
[1767087804816,0.0114,87813.0,87805.0,0.14244739]
[1767087805224,0.02278783,87813.0,87805.0,0.14244739]
[1767087805431,0.01138809,87811.0,87805.0,0.14244739]
[1767087805636,0.01138835,87809.0,87805.0,0.14244739]
[1767087805840,0.01138848,87808.0,87805.0,0.00035739]
[1767087807458,0.0005961,87810.0,87805.0,0.00021139]
[1767087807672,0.01198432,87810.0,87805.0,0.00021139]
[1767087809208,0.0005961,87810.0,87805.0,0.00021139]
[1767087809410,4.71e-05,87810.0,87805.0,0.00021139]
[1767087810022,0.00010827,87810.0,87805.0,0.00021139]
[1767087811209,0.01138848,87808.0,87805.0,0.00021139]
[1767087814034,0.01076595,87809.0,87805.0,0.00021139]
[1767087814165,0.00010827,87810.0,87805.0,0.00021139]
[1767087819403,0.00010827,87810.0,87800.0,0.51411716]
[1767087819827,2.7e-07,87810.0,87800.0,0.51411716]
[1767087820033,0.0004,87817.0,87800.0,0.51411716]
[1767087820236,0.0004,87818.0,87808.0,0.14209]
[1767087821418,0.000358,87818.0,87809.0,0.14209]
[1767087828001,0.000146,87818.0,87809.0,0.14209]
[1767087829010,0.0004,87819.0,87809.0,0.14209]
[1767087829656,0.0004,87819.0,87809.0,0.51411716]
[1767087829821,4.201e-05,87819.0,87810.0,0.14014]
[1767087830468,0.01178589,87828.0,87810.0,0.14014]
[1767087830469,0.0113842,87841.0,87816.0,0.14014]
[1767087830666,0.0113842,87841.0,87812.0,0.05693974]
[1767087830667,0.01138446,87839.0,87831.0,0.51411716]
[1767087830919,0.05692556,87834.0,87828.0,0.14014]
[1767087831139,0.01138498,87835.0,87820.0,0.51411716]
[1767087831140,0.01138524,87833.0,87824.0,0.0114]
[1767087831344,0.01138524,87833.0,87819.0,0.0114]
[1767087831345,0.01138537,87832.0,87819.0,0.0114]
[1767087831586,0.01138537,87832.0,87820.0,0.51411716]
[1767087831976,0.00035803,87832.0,87819.0,0.0114]
[1767087832181,0.00035803,87832.0,87820.0,0.51411716]
[1767087832407,0.00035803,87832.0,87820.0,0.65425716]
[1767087832819,0.0117434,87832.0,87820.0,0.65425716]
[1767087833012,0.0113855,87831.0,87820.0,0.65425716]
[1767087833227,0.0117434,87832.0,87820.0,0.65425716]
[1767087833528,0.0113855,87831.0,87820.0,0.65425716]
[1767087833777,0.06831378,87830.0,87820.0,0.65425716]
[1767087833977,0.06831378,87830.0,87820.0,0.51411716]
[1767087834336,0.05692975,87828.0,87820.0,0.51411716]
[1767087834545,0.01138679,87821.0,87818.0,0.48174716]
[1767087834813,0.01138679,87821.0,87813.0,0.0114]
[1767087834814,0.01138705,87819.0,87813.0,0.0114]
[1767087834945,0.05652409,87817.0,87813.0,0.0114]
[1767087835150,0.01138744,87816.0,87813.0,0.0114]
[1767087835346,0.04553776,87815.0,87813.0,0.0114]
[1767087835751,0.01138809,87811.0,87808.0,0.0002]
[1767087835953,0.01138835,87809.0,87803.0,0.0116695]
[1767087836152,0.01138848,87808.0,87803.0,0.0116695]
[1767087836359,0.01138835,87809.0,87808.0,0.000549]
[1767087836779,0.01138848,87808.0,87803.0,0.0116695]
[1767087836984,0.01138835,87809.0,87803.0,0.0116695]
[1767087837539,0.01138835,87809.0,87803.0,0.1486695]
[1767087838846,0.01138848,87808.0,87803.0,0.1486695]
[1767087839000,0.06833016,87809.0,87803.0,0.1486695]
[1767087839208,0.01138848,87808.0,87803.0,0.0116695]
[1767087839616,0.0110305,87808.0,87803.0,0.0116695]
[1767087840238,0.01138835,87809.0,87803.0,0.0116695]
[1767087840850,0.01138822,87810.0,87808.0,0.00035797]
[1767087841288,0.01138809,87811.0,87808.0,0.00035797]
[1767087841889,0.06832868,87811.0,87808.0,0.00035797]
[1767087843633,0.05694175,87810.0,87808.0,0.00035797]
[1767087845041,0.06832868,87811.0,87808.0,0.00035797]
[1767087845664,0.05694175,87810.0,87808.0,0.00035797]
[1767087848897,0.06832868,87811.0,87808.0,0.00035797]
[1767087849853,0.01138835,87809.0,87803.0,0.01125481]
[1767087851917,0.01138835,87809.0,87792.0,0.1477]
[1767087851918,0.06833773,87800.0,87797.0,0.06143103]
[1767087852123,0.06833773,87800.0,87796.0,1e-08]
[1767087852124,0.05694948,87798.0,87796.0,1e-08]
[1767087853185,0.05694948,87798.0,87796.0,6.118e-05]
[1767087854609,0.06833791,87799.0,87796.0,6.118e-05]
[1767087857784,0.01138965,87799.0,87796.0,6.118e-05]
[1767087858023,0.01138952,87800.0,87796.0,6.118e-05]
[1767087858360,0.01138939,87801.0,87796.0,6.118e-05]
[1767087860750,0.01138952,87800.0,87796.0,6.118e-05]
[1767087862418,0.01138965,87799.0,87796.0,6.118e-05]
[1767087863329,0.01138952,87800.0,87796.0,6.118e-05]
[1767087864559,0.01138965,87799.0,87796.0,6.118e-05]
[1767087865384,0.01138952,87800.0,87796.0,6.118e-05]
[1767087865560,0.01138939,87801.0,87796.0,6.118e-05]
[1767087865765,0.01084052,87800.0,87796.0,6.118e-05]
[1767087867360,0.01138939,87801.0,87796.0,6.118e-05]
[1767087868217,0.0114,87805.0,87796.0,6.118e-05]
[1767087868416,0.0114,87805.0,87801.0,0.00055]
[1767087868617,0.0114,87805.0,87796.0,6.118e-05]
[1767087872308,0.01138783,87813.0,87796.0,6.118e-05]
[1767087872504,0.0114,87812.0,87800.0,0.51432888]
[1767087872998,0.02278796,87812.0,87800.0,0.51432888]
[1767087874266,0.01138809,87811.0,87800.0,0.51432888]
[1767087874664,0.02278796,87812.0,87800.0,0.51432888]
[1767087874867,0.0114,87812.0,87800.0,0.51432888]
[1767087879015,0.02279787,87820.0,87812.0,0.00055]
[1767087879199,0.0114,87815.0,87812.0,0.00055]
[1767087879362,0.0114,87815.0,87806.0,0.51432888]
[1767087880178,0.01138614,87826.0,87806.0,0.51432888]
[1767087880179,0.0002,87828.0,87815.0,0.00055]
[1767087880380,0.0114,87823.0,87807.0,0.15083861]
[1767087880579,0.0114,87823.0,87809.0,0.13945]
[1767087880789,0.0114,87823.0,87813.0,0.51432888]
[1767087881115,0.0114,87823.0,87817.0,0.0002]
[1767087884606,0.0002,87828.0,87817.0,0.0002]
[1767087884810,0.0002515,87840.0,87825.0,0.15083627]
[1767087885013,0.0002515,87840.0,87830.0,0.51432888]
[1767087885547,0.0002515,87840.0,87827.0,0.15083602]
[1767087885548,0.0002515,87840.0,87827.0,0.13945]
[1767087885734,0.0002515,87840.0,87830.0,0.51432888]
[1767087885935,0.00060953,87840.0,87830.0,0.51432888]
[1767087891683,0.00060953,87840.0,87827.0,0.13945]
[1767087891891,0.00060953,87840.0,87830.0,0.51432888]
[1767087893181,0.00035803,87840.0,87830.0,0.51432888]
[1767087897275,0.0002,87840.0,87830.0,0.51412888]
[1767087897572,0.0003535,87841.0,87830.0,0.51412888]
[1767087897774,0.00046085,87841.0,87830.0,0.51412888]
[1767087897945,0.00026085,87841.0,87830.0,0.51412888]
[1767087898949,0.01138381,87844.0,87830.0,0.51412888]
[1767087899176,0.01138368,87845.0,87834.0,0.51432888]
[1767087899942,0.01138368,87845.0,87835.0,0.51432888]
[1767087900322,0.01138355,87846.0,87835.0,0.51359101]
[1767087900561,0.01138355,87846.0,87836.0,0.51432888]
[1767087900877,0.000549,87836.0,87833.0,0.0114]
[1767087901073,0.06830211,87845.0,87830.0,0.51468691]
[1767087901218,0.01138381,87844.0,87835.0,0.51432888]
[1767087901422,0.01138381,87844.0,87839.0,0.00035803]
[1767087901618,0.01138368,87845.0,87839.0,0.00035803]
[1767087901890,0.01138394,87843.0,87839.0,3e-08]
[1767087902380,0.01136801,87843.0,87839.0,3e-08]
[1767087902553,0.01138407,87842.0,87839.0,3e-08]
[1767087903255,0.01136801,87843.0,87839.0,3e-08]
[1767087903452,0.01138407,87842.0,87839.0,3e-08]
[1767087906137,0.01136801,87843.0,87839.0,3e-08]
[1767087908393,0.01138407,87842.0,87839.0,3e-08]
[1767087909523,0.01135209,87843.0,87839.0,3e-08]
[1767087909734,0.01138407,87842.0,87839.0,3e-08]
[1767087909910,0.01135209,87843.0,87839.0,3e-08]
[1767087910893,0.01138381,87844.0,87839.0,3e-08]
[1767087915754,0.01138368,87845.0,87839.0,3e-08]
[1767087916596,0.0114,87846.0,87839.0,3e-08]
[1767087916844,0.01067725,87845.0,87839.0,3e-08]
[1767087917006,0.02278355,87846.0,87839.0,3e-08]
[1767087917236,0.0106785,87845.0,87839.0,3e-08]
[1767087917431,0.02278355,87846.0,87839.0,3e-08]
[1767087917635,0.0106791,87845.0,87839.0,3e-08]
[1767087917835,0.02278355,87846.0,87839.0,3e-08]
[1767087918159,0.01067845,87845.0,87839.0,3e-08]
[1767087918293,0.02278355,87846.0,87839.0,3e-08]
[1767087918494,0.01067843,87845.0,87839.0,3e-08]
[1767087918737,0.01138368,87845.0,87839.0,3e-08]
[1767087919114,0.02278355,87846.0,87839.0,3e-08]
[1767087919436,0.01067842,87845.0,87839.0,3e-08]
[1767087919637,0.02278355,87846.0,87839.0,3e-08]
[1767087919816,0.01067843,87845.0,87839.0,3e-08]
[1767087919996,0.02278355,87846.0,87839.0,3e-08]
[1767087920198,0.01067843,87845.0,87839.0,3e-08]
[1767087920590,0.02278355,87846.0,87842.0,0.00012522]
[1767087920819,0.0220621,87845.0,87836.0,0.51262132]
[1767087921024,0.01138368,87845.0,87836.0,0.51262132]
[1767087921430,0.02278355,87846.0,87836.0,0.51262132]
[1767087921603,0.01067839,87845.0,87836.0,0.51262132]
[1767087921815,0.02278355,87846.0,87836.0,0.51262132]
[1767087922026,0.01067839,87845.0,87836.0,0.51262132]
[1767087922228,0.0114,87846.0,87836.0,0.51262132]
[1767087922432,0.01067838,87845.0,87836.0,0.51262132]
[1767087922637,0.0114,87846.0,87836.0,0.51262132]
[1767087922866,0.01067835,87845.0,87836.0,0.51257908]
[1767087923089,0.0114,87846.0,87836.0,0.51257908]
[1767087923291,0.02206204,87845.0,87836.0,0.51257908]
[1767087923504,0.01138368,87845.0,87836.0,0.51257908]
[1767087924050,0.02278355,87846.0,87836.0,0.51257908]
[1767087924249,0.01067836,87845.0,87836.0,0.51257908]
[1767087924455,0.02278355,87846.0,87836.0,0.51257908]
[1767087924664,0.01067836,87845.0,87836.0,0.51257908]
[1767087924881,0.02278355,87846.0,87836.0,0.51257908]
[1767087925083,0.01067836,87845.0,87836.0,0.51257908]
[1767087925325,0.02278355,87846.0,87836.0,0.51257908]
[1767087925523,0.0114,87846.0,87836.0,0.51257908]
[1767087925887,0.0114,87851.0,87836.0,0.51257908]
[1767087926091,0.000176,87852.0,87840.0,1.02865776]
[1767087926282,0.000176,87852.0,87842.0,0.51432888]
[1767087926536,0.000176,87852.0,87843.0,0.14925]
[1767087926739,0.05707229,87852.0,87846.0,0.00035801]
[1767087926975,0.0001413,87852.0,87840.0,0.52501045]
[1767087927159,0.01138303,87850.0,87840.0,0.52501045]
[1767087927362,0.01138316,87849.0,87840.0,0.52501045]
[1767087927567,0.01138303,87850.0,87840.0,0.52501045]
[1767087927777,0.01138316,87849.0,87840.0,0.52501045]
[1767087928241,0.01138303,87850.0,87840.0,0.52501045]
[1767087928480,0.01138342,87847.0,87840.0,0.52501045]
[1767087928719,0.01138472,87837.0,87830.0,0.00035803]
[1767087928946,0.01138472,87837.0,87815.0,0.000176]
[1767087928947,0.01138614,87826.0,87816.0,0.06132927]
[1767087929160,0.01138614,87826.0,87817.0,0.0114]
[1767087929333,0.01138576,87829.0,87817.0,0.0114]
[1767087929766,8.323e-05,87830.0,87819.0,0.51361045]
[1767087930447,8.323e-05,87830.0,87817.0,0.0114]
[1767087930872,0.01146886,87830.0,87817.0,0.0114]
[1767087931103,0.01138576,87829.0,87817.0,0.0114]
[1767087931303,0.01138576,87829.0,87818.0,0.0114]
[1767087931532,0.01146886,87830.0,87818.0,0.0114]
[1767087931750,8.323e-05,87830.0,87818.0,0.0114]
[1767087932745,0.01138576,87829.0,87818.0,0.0114]
[1767087932954,8.323e-05,87830.0,87818.0,0.0114]
[1767087932955,0.01146886,87830.0,87818.0,0.0114]
[1767087934497,8.323e-05,87830.0,87818.0,0.0114]
[1767087935380,0.01146886,87830.0,87818.0,0.0114]
[1767087935752,8.323e-05,87830.0,87818.0,0.0114]
[1767087937846,8.323e-05,87830.0,87811.0,0.14925]
[1767087937847,0.00055,87818.0,87810.0,0.0114]
[1767087938176,0.01138692,87820.0,87808.0,0.06132927]
[1767087938348,0.01138653,87823.0,87807.0,0.06132927]
[1767087938529,0.01138627,87825.0,87820.0,0.000358]
[1767087938741,0.0113864,87824.0,87820.0,0.000358]
[1767087939144,0.01138627,87825.0,87820.0,0.000358]
[1767087939344,0.0113864,87824.0,87820.0,0.000358]
[1767087940176,0.01138627,87825.0,87820.0,0.000358]
[1767087940398,0.0113864,87824.0,87820.0,0.000358]
[1767087940601,0.01138653,87823.0,87820.0,0.000358]
[1767087941676,0.01138653,87823.0,87810.0,0.51361045]
[1767087942689,0.01138666,87822.0,87810.0,0.51361045]
[1767087943153,9.721e-05,87821.0,87810.0,0.51361045]
[1767087943772,2.1e-07,87821.0,87810.0,0.51361045]
[1767087951971,2.1e-07,87821.0,87810.0,0.01138835]
[1767087952175,0.01138861,87807.0,87804.0,0.000176]
[1767087952398,0.01138848,87808.0,87804.0,0.000176]
[1767087952596,0.05694213,87809.0,87804.0,0.000176]
[1767087952597,0.01138861,87807.0,87804.0,0.000176]
[1767087953949,0.01138861,87807.0,87800.0,0.0001462]
[1767087954177,0.01138874,87806.0,87800.0,0.00020737]
[1767087957246,0.01138848,87808.0,87800.0,0.00020737]
[1767087957556,0.01138861,87807.0,87800.0,0.00020737]
[1767087958563,0.01138874,87806.0,87800.0,0.00020737]
[1767087961088,0.01138848,87808.0,87800.0,0.00020737]
[1767087961291,0.01138783,87813.0,87807.0,0.13648]
[1767087961500,0.01138796,87812.0,87809.0,0.13648]
[1767087961790,0.01138796,87812.0,87800.0,0.00020737]
[1767087962034,0.01138848,87808.0,87800.0,0.00020737]
[1767087962210,0.01138861,87807.0,87800.0,0.00020737]
[1767087962680,0.01138822,87810.0,87800.0,0.00020737]
[1767087963283,0.01138809,87811.0,87800.0,0.00020737]
[1767087964029,0.06832901,87811.0,87800.0,0.00020737]
[1767087964265,0.01138835,87809.0,87800.0,0.00020737]
[1767087966592,0.01138809,87811.0,87800.0,0.00020737]
[1767087967671,0.01138796,87812.0,87800.0,0.00020737]
[1767087968097,0.01138809,87811.0,87800.0,0.00020737]
[1767087968294,0.01138835,87809.0,87800.0,0.00020737]
[1767087968613,0.01138848,87808.0,87800.0,0.00020737]
[1767087970239,0.01138822,87810.0,87800.0,0.00020737]
[1767087970654,0.06832756,87813.0,87800.0,0.00020737]
[1767087970875,0.01138809,87811.0,87800.0,0.51381782]
[1767087972035,0.01138822,87810.0,87800.0,0.51381782]
[1767087972240,0.01138822,87810.0,87800.0,0.00020737]
[1767087973576,0.01138809,87811.0,87800.0,0.00020737]
[1767087974029,0.0113877,87814.0,87800.0,0.00020737]
[1767087974309,0.01138783,87813.0,87800.0,0.00020737]
[1767087974741,0.0114,87812.0,87800.0,0.51381782]
[1767087974949,0.0114,87812.0,87800.0,0.65029782]
[1767087976234,0.02278796,87812.0,87800.0,0.65029782]
[1767087976477,0.0114,87812.0,87800.0,0.65029782]
[1767087977195,0.02278796,87812.0,87800.0,0.65029782]
[1767087981697,0.0114,87812.0,87800.0,0.65029782]
[1767087984662,0.0114,87817.0,87812.0,0.001099]
[1767087985141,0.01138744,87816.0,87812.0,0.001099]
[1767087985352,0.01138744,87816.0,87806.0,0.51361045]
[1767087985705,0.01138757,87815.0,87806.0,0.51361045]
[1767087985915,0.0113877,87814.0,87801.0,0.20612927]
[1767087987268,0.0113877,87814.0,87801.0,0.1448]
[1767087987412,0.01138757,87815.0,87802.0,0.0114]
[1767087988689,0.01138757,87815.0,87805.0,0.51415187]
[1767087989198,0.01138757,87815.0,87802.0,0.0114]
[1767087989403,0.06832602,87815.0,87805.0,0.51415187]
[1767087989658,0.01138796,87812.0,87805.0,0.51415187]
[1767087989914,0.01138796,87812.0,87802.0,0.52555187]
[1767087990891,0.01138783,87813.0,87802.0,0.52555187]
[1767087991068,0.0113877,87814.0,87802.0,0.52555187]
[1767087991272,0.0113877,87814.0,87804.0,0.51415187]
[1767087992724,0.0113877,87814.0,87801.0,0.1448]
[1767087992725,0.01138809,87811.0,87801.0,0.1448]
[1767087992983,0.0683286,87811.0,87802.0,0.0114]
[1767087993353,0.01138835,87809.0,87802.0,0.0114]
[1767087994089,0.01080694,87809.0,87802.0,0.0114]
[1767087994291,0.01138822,87810.0,87802.0,0.0114]
[1767087995097,0.01138809,87811.0,87802.0,0.0114]
[1767087995238,0.01138796,87812.0,87802.0,0.0114]
[1767087996444,0.01138783,87813.0,87802.0,0.0114]
[1767087996606,0.01138796,87812.0,87802.0,0.0114]
[1767087999962,0.06832819,87812.0,87802.0,0.0114]
[1767088000611,0.01138809,87811.0,87802.0,0.0114]
[1767088000935,0.01138796,87812.0,87802.0,0.0114]
[1767088001797,0.01138783,87813.0,87802.0,0.0114]
[1767088002159,0.01138744,87816.0,87802.0,0.0114]
[1767088002362,0.0113877,87814.0,87802.0,0.0114]
[1767088002762,0.01138783,87813.0,87802.0,0.0114]
[1767088002985,0.01138757,87815.0,87802.0,0.0114]
[1767088003140,0.01138744,87816.0,87802.0,0.0114]
[1767088003749,0.01138757,87815.0,87802.0,0.0114]
[1767088005187,0.02278731,87817.0,87802.0,0.0114]
[1767088005508,0.1250069,87812.0,87802.0,0.0114]
[1767088006684,0.0395679,87812.0,87802.0,0.0114]
[1767088007289,1e-08,87812.0,87802.0,0.0114]
[1767088007489,0.01138757,87815.0,87812.0,0.00058139]
[1767088009299,0.01138731,87817.0,87812.0,0.00058139]
[1767088009701,0.01138757,87815.0,87812.0,3.239e-05]
[1767088009890,0.01138744,87816.0,87812.0,3.239e-05]
[1767088010086,0.01138718,87818.0,87812.0,3.239e-05]
[1767088010487,0.01138731,87817.0,87812.0,3.239e-05]
[1767088010741,0.01138705,87819.0,87812.0,3.239e-05]
[1767088011345,0.0114,87820.0,87812.0,3.239e-05]
[1767088012162,0.02278692,87820.0,87812.0,3.239e-05]
[1767088012364,0.0114,87820.0,87812.0,3.239e-05]
[1767088013162,0.02278692,87820.0,87812.0,3.239e-05]
[1767088013384,0.01138718,87818.0,87812.0,3.239e-05]
[1767088013915,0.01138731,87817.0,87812.0,3.239e-05]
[1767088014133,0.01138718,87818.0,87812.0,3.239e-05]
[1767088016820,0.01138731,87817.0,87812.0,3.239e-05]
[1767088017018,0.01138718,87818.0,87812.0,3.239e-05]
[1767088017220,0.01138705,87819.0,87812.0,3.239e-05]
[1767088017430,0.01138718,87818.0,87812.0,3.239e-05]
[1767088017984,0.01138731,87817.0,87812.0,3.239e-05]
[1767088018212,0.01138718,87818.0,87812.0,3.239e-05]
[1767088018414,0.01138731,87817.0,87812.0,3.239e-05]
[1767088018825,0.01138718,87818.0,87812.0,3.239e-05]
[1767088020391,0.01138705,87819.0,87812.0,3.239e-05]
[1767088020685,0.01138718,87818.0,87812.0,3.239e-05]
[1767088021450,0.01138705,87819.0,87812.0,3.239e-05]
[1767088021725,0.0114,87820.0,87812.0,3.239e-05]
[1767088021971,1.54951561,87900.0,87812.0,3.239e-05]
[1767088021972,0.01138498,87835.0,87820.0,0.1387]
[1767088022176,0.0114,87839.0,87825.0,0.51415187]
[1767088022380,0.0114,87839.0,87830.0,0.51415187]
[1767088022582,0.0002,87841.0,87831.0,0.0114]
[1767088022754,0.01153126,87849.0,87839.0,0.51415187]
[1767088022755,0.00010604,87849.0,87839.0,0.51415187]
[1767088022999,0.00010604,87849.0,87840.0,0.000148]
[1767088023193,0.0114892,87849.0,87840.0,0.000148]
[1767088023395,0.0114892,87849.0,87839.0,0.51415187]
[1767088023396,0.00010604,87849.0,87839.0,0.51415187]
[1767088023618,0.01184723,87849.0,87839.0,0.51415187]
[1767088024123,0.00046407,87849.0,87839.0,0.51415187]
[1767088024434,0.01184723,87849.0,87839.0,0.51415187]
[1767088024977,0.0114,87852.0,87849.0,8.493e-05]
[1767088025216,0.01146109,87852.0,87849.0,8.493e-05]
[1767088025532,0.01146109,87852.0,87841.0,0.51415187]
[1767088027111,6.109e-05,87852.0,87841.0,0.51415187]
[1767088027450,6.109e-05,87852.0,87838.0,0.0114]
[1767088027451,0.01138355,87846.0,87840.0,0.51415187]
[1767088027593,0.01138368,87845.0,87838.0,0.0114]
[1767088027790,0.01138381,87844.0,87838.0,0.0114]
[1767088028003,0.01138368,87845.0,87838.0,0.0114]
[1767088028412,0.01138303,87850.0,87838.0,0.0114]
[1767088028652,0.01138303,87850.0,87840.0,0.51415187]
[1767088028870,6.109e-05,87852.0,87850.0,8.5e-05]
[1767088029039,0.0114,87857.0,87852.0,5.991e-05]
[1767088029254,0.0114,87857.0,87851.0,0.13815]
[1767088029589,0.0114,87857.0,87845.0,0.51415187]
[1767088030056,0.02278213,87857.0,87845.0,0.51415187]
[1767088030666,0.0114,87857.0,87845.0,0.51415187]
[1767088030878,0.02278213,87857.0,87845.0,0.51415187]
[1767088031070,0.01138226,87856.0,87845.0,0.51415187]
[1767088031274,0.02278213,87857.0,87845.0,0.51415187]
[1767088031823,0.01158239,87855.0,87845.0,0.51415187]
[1767088031946,0.0002,87855.0,87845.0,0.51415187]
[1767088032886,0.000116,87855.0,87846.0,0.0114]
[1767088035644,0.011382,87858.0,87846.0,0.0114]
[1767088036427,0.01138187,87859.0,87846.0,0.0114]
[1767088037230,0.00024158,87861.0,87846.0,0.0114]
[1767088037422,0.000162,87870.0,87851.0,0.51415187]
[1767088037423,0.05690481,87867.0,87851.0,0.51415187]
[1767088037568,0.01138122,87864.0,87857.0,0.51415187]
[1767088037766,0.000549,87857.0,87854.0,0.51415187]
[1767088038134,0.000162,87870.0,87855.0,0.0114]
[1767088038337,0.000162,87870.0,87857.0,0.000549]
[1767088038574,0.000162,87870.0,87860.0,0.51415187]
[1767088040078,0.0004,87879.0,87870.0,0.00016]
[1767088040419,0.0004,87879.0,87869.0,0.52555187]
[1767088044384,0.0004,87879.0,87869.0,1.03970374]
[1767088045146,0.0004,87879.0,87869.0,0.52555187]
[1767088045405,0.0004,87879.0,87869.0,1.03970374]
[1767088045824,0.0004,87879.0,87870.0,0.14589]
[1767088045982,0.0002298,87883.0,87873.0,0.51415187]
[1767088046980,0.0002298,87883.0,87873.0,0.66004187]
[1767088047259,8.28e-05,87883.0,87874.0,0.14589]
[1767088048322,0.01137772,87891.0,87888.0,0.01137811]
[1767088048519,0.01137889,87882.0,87870.0,0.51328679]
[1767088048716,0.0113785,87885.0,87871.0,0.0114]
[1767088048958,0.01137863,87884.0,87875.0,0.51328679]
[1767088049314,0.01148597,87884.0,87875.0,0.51328679]
[1767088049704,0.01148597,87884.0,87875.0,0.51273779]
[1767088051312,0.01137876,87883.0,87876.0,0.0114]
[1767088051513,0.00010734,87884.0,87876.0,0.01085]
[1767088054332,0.00010734,87884.0,87874.0,0.51328679]
[1767088054487,0.00010734,87884.0,87877.0,0.0114]
[1767088055179,0.01137847,87883.0,87877.0,0.0114]
[1767088056298,0.01137811,87888.0,87877.0,0.0114]
[1767088056502,0.01137811,87888.0,87878.0,0.51328679]
[1767088056709,0.06826501,87893.0,87878.0,0.51328679]
[1767088056877,0.01137734,87894.0,87888.0,0.000549]
[1767088057082,0.02277721,87895.0,87888.0,0.000549]
[1767088057470,0.01137734,87894.0,87883.0,0.51328679]
[1767088057840,0.01137747,87893.0,87883.0,0.51328679]
[1767088058280,0.01137734,87894.0,87877.0,0.0114]
[1767088058482,0.02277721,87895.0,87883.0,0.51328679]
[1767088058680,0.01137721,87895.0,87884.0,0.0114]
[1767088059282,0.01137708,87896.0,87884.0,0.0114]
[1767088059528,0.0106251,87895.0,87884.0,0.0114]
[1767088059730,0.01142188,87896.0,87884.0,0.0114]
[1767088059937,0.02200231,87895.0,87884.0,0.0114]
[1767088060163,0.01137734,87894.0,87884.0,0.0114]
[1767088060309,0.01137721,87895.0,87884.0,0.0114]
[1767088060510,0.02200416,87894.0,87884.0,0.0114]
[1767088060724,0.01137734,87894.0,87884.0,0.0114]
[1767088060932,0.01137747,87893.0,87884.0,0.52468679]
[1767088061149,0.01142188,87896.0,87884.0,0.52468679]
[1767088061150,4.48e-05,87896.0,87885.0,0.14589]
[1767088061323,0.01137591,87905.0,87896.0,4.4e-05]
[1767088061521,0.0004,87907.0,87896.0,4.4e-05]
[1767088061522,0.01177565,87907.0,87897.0,0.0114]
[1767088061718,0.06865633,87904.0,87897.0,0.0114]
[1767088062035,0.06865633,87904.0,87892.0,0.0114]
[1767088062036,0.0113763,87902.0,87892.0,0.0114]
[1767088062253,0.01177617,87903.0,87892.0,0.0114448]
[1767088062588,0.01177617,87903.0,87893.0,0.0114]
[1767088062723,0.0004,87903.0,87893.0,0.0114]
[1767088063142,0.0113763,87902.0,87893.0,0.0114]
[1767088063710,0.01177617,87903.0,87893.0,0.0114]
[1767088063960,0.0004,87907.0,87893.0,0.0114]
[1767088064108,0.0004,87907.0,87895.0,0.51328679]
[1767088064521,0.0004,87907.0,87895.0,0.51240094]
[1767088065176,0.0002298,87911.0,87895.0,0.14589]
[1767088065378,0.0106317,87908.0,87899.0,0.51328679]
[1767088065588,0.0106317,87907.0,87900.0,0.0114]
[1767088065811,0.0002298,87911.0,87900.0,0.01021916]
[1767088066879,0.01063406,87908.0,87900.0,0.01021916]
[1767088067076,0.01063406,87907.0,87900.0,0.01021916]
[1767088067282,0.0004,87909.0,87900.0,0.01021916]
[1767088067490,0.01063781,87908.0,87900.0,0.01021916]
[1767088067824,0.0004,87909.0,87900.0,0.01021916]
[1767088067825,0.01063781,87907.0,87900.0,0.01021916]
[1767088068022,0.01177539,87909.0,87900.0,0.01021916]
[1767088068291,0.06751388,87908.0,87900.0,0.00981916]
[1767088068458,0.01137578,87906.0,87892.0,4.48e-05]
[1767088068663,0.01063624,87905.0,87893.0,0.0114]
[1767088068841,0.06825316,87908.0,87893.0,0.0114]
[1767088069049,0.01137565,87907.0,87893.0,0.0114]
[1767088069245,0.0004,87909.0,87897.0,0.51328679]
[1767088069451,0.01137552,87908.0,87897.0,0.51328679]
[1767088069849,0.01137565,87907.0,87893.0,0.0114]
[1767088070051,0.01137604,87904.0,87894.0,0.0114]
[1767088070256,0.01137643,87901.0,87894.0,0.0114]
[1767088070457,0.0113763,87902.0,87894.0,0.0114]
[1767088070787,0.01137617,87903.0,87894.0,0.0114]
[1767088071006,0.01137604,87904.0,87894.0,0.0114]
[1767088071816,0.01137604,87904.0,87892.0,4.48e-05]
[1767088071817,0.01137643,87901.0,87892.0,4.48e-05]
[1767088072051,0.06825555,87905.0,87892.0,4.48e-05]
[1767088072052,0.05688402,87899.0,87892.0,0.01113]
[1767088072215,0.01137682,87898.0,87892.0,0.01113]
[1767088072408,0.01137669,87899.0,87892.0,0.01113]
[1767088073235,0.01137682,87898.0,87892.0,0.01113]
[1767088073438,0.01137682,87898.0,87889.0,0.51328679]
[1767088073439,0.01137759,87892.0,87880.0,0.51328679]
[1767088073851,0.01137747,87893.0,87881.0,0.0114]
[1767088074016,0.01097759,87892.0,87881.0,0.0114]
[1767088074222,0.01137734,87894.0,87881.0,0.0114]
[1767088074589,0.01137747,87893.0,87881.0,0.0114]
[1767088074923,0.01137734,87894.0,87881.0,0.0114]
[1767088075123,0.01137734,87894.0,87882.0,0.0114]
[1767088075895,0.01137759,87892.0,87872.0,0.06132927]
[1767088076104,0.01137811,87888.0,87880.0,0.51328679]
[1767088076300,0.05688864,87891.0,87880.0,0.51328679]
[1767088076301,0.01137772,87891.0,87881.0,0.0114]
[1767088076539,0.01137759,87892.0,87881.0,0.0114]